bitfinex/quotes_ETHUSD_20250319
["timestamp","ask_amount","ask_price","bid_price","bid_amount"]
[1742360651593,2.04437335,1938.0,1937.8,5.16039]
[1742360651807,2.04437335,1938.0,1937.9,0.08688726]
[1742360652110,2.04437335,1938.0,1937.8,5.16039]
[1742360652297,4.50704268,1937.9,1937.7,5.16069]
[1742360652492,4.50704268,1937.8,1937.7,5.16069]
[1742360652808,0.7509,1937.7,1937.6,5.16101]
[1742360652979,5.25794268,1937.7,1937.6,5.16101]
[1742360653722,0.7509,1937.7,1937.6,5.16101]
[1742360654125,0.7509,1937.9,1937.7,5.1606]
[1742360656892,0.7509,1937.9,1937.7,10.3212]
[1742360657524,0.7509,1937.9,1937.8,0.0870707]
[1742360657680,2.09658288,1938.0,1937.8,5.2475607]
[1742360658021,2.03207335,1938.0,1937.8,5.2475607]
[1742360658435,2.03207335,1938.0,1937.8,10.4078607]
[1742360658614,2.03207335,1938.0,1937.9,5.16022]
[1742360658978,2.03207335,1938.0,1937.9,5.24702171]
[1742360659207,0.7509,1938.2,1938.0,5.1598]
[1742360659408,0.7509,1938.2,1938.1,5.15969]
[1742360659616,0.25776889,1938.2,1938.1,5.2460471]
[1742360659782,5.5979,1938.3,1938.1,5.2460471]
[1742360659981,0.7509,1938.3,1938.1,5.2460471]
[1742360660718,1.38609391,1938.3,1938.1,5.2460471]
[1742360661013,1.38609391,1938.3,1938.1,10.4055671]
[1742360661198,1.38609391,1938.3,1938.2,5.15942]
[1742360661507,1.00435716,1938.3,1938.2,5.24555484]
[1742360661677,0.81539362,1938.3,1938.2,5.24555484]
[1742360662795,0.7509,1938.3,1938.2,5.24555484]
[1742360662994,0.38996367,1938.4,1938.3,5.15916]
[1742360663312,5.66239361,1938.5,1938.3,5.24507259]
[1742360663516,6.22863297,1938.5,1938.3,5.24507259]
[1742360663704,0.8307,1938.4,1938.3,0.08591259]
[1742360663909,5.96266703,1938.4,1938.0,5.15975]
[1742360664109,0.8307,1938.2,1938.1,0.08621717]
[1742360664406,0.8307,1938.2,1938.1,5.24590717]
[1742360664785,0.8307,1938.2,1938.1,0.08621717]
[1742360666012,0.8307,1938.2,1938.0,10.31954]
[1742360666218,0.8307,1938.2,1938.1,0.08621717]
[1742360671109,1.436144,1938.2,1938.1,0.08621717]
[1742360671517,0.8307,1938.2,1938.1,0.08621717]
[1742360678139,6.54012,1938.2,1938.1,0.08621717]
[1742360678319,1.3807,1938.2,1938.1,0.08621717]
[1742360678520,1.3807,1938.2,1937.9,5.16017]
[1742360678720,1.3807,1938.2,1938.0,0.08625111]
[1742360679145,0.06450472,1938.1,1938.0,0.08625111]
[1742360679527,1.3807,1938.2,1938.0,0.08625111]
[1742360679932,0.654004,1938.2,1938.0,5.24603111]
[1742360680237,1.95205461,1938.4,1938.1,5.15958]
[1742360680439,0.06449827,1938.3,1938.1,5.15958]
[1742360680741,0.06449827,1938.3,1938.2,0.08580655]
[1742360682045,0.06449827,1938.3,1938.0,10.31968]
[1742360682249,0.06449827,1938.3,1938.2,0.08580655]
[1742360682442,0.7567,1938.2,1938.1,0.08602882]
[1742360682641,0.7567,1938.2,1937.9,5.16004]
[1742360682844,0.06450048,1938.1,1938.0,5.15991]
[1742360683061,0.8211999,1938.2,1938.1,5.15969]
[1742360683217,0.06449823,1938.3,1938.1,5.15969]
[1742360685032,0.06449823,1938.3,1938.0,5.15991]
[1742360686470,0.78204551,1938.3,1938.0,5.15991]
[1742360687373,0.7567,1938.2,1937.9,5.16022]
[1742360687554,0.55,1937.9,1937.6,5.16091]
[1742360687718,0.55,1937.9,1937.5,5.1612]
[1742360687921,0.06451682,1937.8,1937.5,5.1612]
[1742360688453,0.06451682,1937.8,1937.6,5.16085]
[1742360688683,1.19668,1937.9,1937.6,10.32174]
[1742360688855,0.55,1937.9,1937.7,5.16075]
[1742360689035,0.93806749,1937.9,1937.7,5.16075]
[1742360689373,0.38806749,1937.9,1937.8,5.16049]
[1742360689531,0.82121166,1938.0,1937.7,5.16075]
[1742360693573,5.98122166,1938.0,1937.7,5.16075]
[1742360693867,0.59812217,1937.9,1937.6,5.16086]
[1742360694070,0.06450927,1937.8,1937.6,5.16086]
[1742360694544,0.0645094,1937.9,1937.7,5.16075]
[1742360695465,0.0645094,1937.9,1937.6,5.16101]
[1742360695973,5.92499,1937.8,1937.4,5.16148]
[1742360696173,0.06451848,1937.7,1937.4,10.32288]
[1742360696545,0.06451848,1937.7,1937.4,5.1614]
[1742360698062,0.06451848,1937.7,1937.3,5.16177]
[1742360698372,0.7644,1937.5,1937.2,5.74624]
[1742360698578,0.82892478,1937.5,1937.2,5.16194]
[1742360699371,1.48292726,1937.5,1937.2,5.16194]
[1742360701774,6.64421726,1937.5,1937.2,5.16194]
[1742360701943,0.8128,1937.3,1937.0,10.32502]
[1742360702564,0.8128,1937.3,1937.1,0.08862591]
[1742360702874,0.87733068,1937.3,1937.1,0.08862591]
[1742360703292,0.87733068,1937.3,1937.0,5.16261]
[1742360703293,1.48123275,1937.3,1937.0,5.16261]
[1742360703576,1.48123275,1937.3,1937.1,0.08880867]
[1742360705176,1.41670207,1937.3,1937.1,0.08880867]
[1742360705573,1.46680248,1937.5,1937.2,5.16194]
[1742360705874,1.91916143,1937.5,1937.2,5.16194]
[1742360706051,1.91916143,1937.5,1937.3,0.0883637]
[1742360706253,7.08047143,1937.5,1937.3,0.0883637]
[1742360706460,5.86959714,1937.4,1937.3,0.0883637]
[1742360706668,5.86959714,1937.4,1937.1,5.16229]
[1742360706867,5.86959714,1937.4,1937.3,0.0883637]
[1742360707067,5.86959714,1937.4,1937.2,0.08858617]
[1742360707572,11.37162,1937.3,1937.2,0.08858617]
[1742360707777,13.09574171,1937.3,1937.2,0.08858617]
[1742360707977,13.09574171,1937.3,1936.8,10.326]
[1742360708178,18.25777171,1937.3,1937.2,0.08862507]
[1742360708488,5.16216,1937.2,1936.8,10.32597]
[1742360708783,0.06453724,1937.2,1936.9,5.16287]
[1742360709484,1.89676914,1937.2,1936.9,5.16287]
[1742360711662,1.8322319,1937.2,1936.9,5.16287]
[1742360711869,10.82162,1937.3,1937.0,5.16258]
[1742360712387,4.847,1937.3,1937.0,5.74688]
[1742360712586,4.847,1937.3,1937.0,5.74673]
[1742360712883,0.70804714,1937.4,1937.1,5.16228]
[1742360712884,0.77257829,1937.4,1937.1,5.16228]
[1742360713089,5.61957829,1937.4,1937.1,5.16228]
[1742360714658,1.17743198,1937.5,1937.2,5.16208]
[1742360714966,0.45235684,1937.5,1937.3,5.16182]
[1742360715166,5.23483198,1937.5,1937.3,5.16182]
[1742360715596,5.23483198,1937.5,1937.3,5.16161]
[1742360715884,0.38783198,1937.5,1937.3,5.16161]
[1742360716060,3.06452368,1937.6,1937.3,5.16161]
[1742360716260,0.39671262,1937.6,1937.5,5.16129]
[1742360716487,4.847,1937.7,1937.5,5.16129]
[1742360716688,0.7896,1937.9,1937.6,5.16102]
[1742360716890,6.231559,1937.9,1937.7,0.08446864]
[1742360717093,6.231559,1937.9,1937.6,5.16102]
[1742360717301,6.231559,1937.9,1937.7,0.08446864]
[1742360717484,6.231559,1937.9,1937.6,5.16102]
[1742360717682,6.60941294,1937.9,1937.7,0.08446864]
[1742360717987,0.66094129,1937.8,1937.5,5.16128]
[1742360718180,0.06451535,1937.7,1937.5,5.16128]
[1742360718360,0.72545664,1937.8,1937.5,5.16128]
[1742360718562,1.7685852,1937.9,1937.6,5.16092]
[1742360718768,5.89049763,1937.9,1937.6,5.74522]
[1742360719089,5.89049763,1937.9,1937.6,5.74513]
[1742360720401,5.29553863,1937.9,1937.7,5.16075]
[1742360720576,5.2310262,1937.9,1937.7,5.16075]
[1742360721692,5.2310262,1937.9,1937.8,5.16049]
[1742360721892,5.2310262,1937.9,1937.7,5.16075]
[1742360722266,0.7896,1938.1,1937.6,0.5843]
[1742360722466,4.91150462,1938.2,1937.9,5.16004]
[1742360722662,7.91150462,1938.2,1937.9,5.74434]
[1742360722877,0.7896,1938.3,1937.9,10.90435]
[1742360723095,0.06450188,1938.2,1937.9,10.90435]
[1742360723296,0.06450188,1938.2,1937.9,5.74431]
[1742360723877,0.44553939,1938.2,1937.9,5.74431]
[1742360724084,0.44553939,1938.2,1937.9,10.90436]
[1742360725102,0.38103751,1938.2,1937.9,10.90436]
[1742360725262,5.70110059,1938.3,1937.9,10.90436]
[1742360725463,7.16746935,1938.3,1937.9,10.90436]
[1742360726019,12.32663935,1938.3,1937.9,5.74431]
[1742360726178,12.26213876,1938.3,1937.9,5.74431]
[1742360727195,7.10296876,1938.3,1937.9,5.74431]
[1742360727500,7.16746932,1938.3,1938.0,5.15994]
[1742360727877,7.55523244,1938.3,1938.0,5.15994]
[1742360728078,7.49073188,1938.3,1937.9,5.74431]
[1742360728598,12.64991188,1938.3,1937.9,5.74431]
[1742360729189,12.64991188,1938.3,1937.9,10.90439]
[1742360729496,0.38776312,1938.3,1938.0,10.3197]
[1742360729698,4.846,1938.3,1938.1,5.15963]
[1742360730068,0.8162,1938.5,1938.2,5.15927]
[1742360730069,5.7266954,1938.5,1938.2,5.15927]
[1742360731064,5.98971814,1938.5,1938.2,5.15927]
[1742360731267,6.38741395,1938.5,1938.2,5.15927]
[1742360731692,6.38741395,1938.5,1938.1,5.15963]
[1742360731693,16.70491395,1938.5,1938.1,5.15963]
[1742360731892,5.70905,1938.4,1938.0,5.15993]
[1742360732101,0.06449854,1938.3,1938.0,5.15993]
[1742360732570,0.06449854,1938.3,1938.1,0.17173047]
[1742360735201,5.15905,1938.4,1938.1,0.17173047]
[1742360736107,0.06449833,1938.3,1938.1,0.17173047]
[1742360737707,0.8162,1938.2,1938.1,0.17173047]
[1742360737901,0.8162,1938.2,1938.1,0.17151498]
[1742360738120,0.8162,1938.2,1937.9,5.74442]
[1742360738422,0.8162,1938.2,1938.0,0.17174185]
[1742360738776,0.0644983,1938.1,1938.0,0.17174185]
[1742360739277,0.0644983,1938.1,1937.8,5.16037]
[1742360739483,0.0644983,1938.1,1937.9,0.17196874]
[1742360739698,0.0644983,1938.1,1937.8,5.16037]
[1742360740014,0.0644983,1938.1,1937.9,0.17196874]
[1742360740307,0.0644983,1938.1,1937.8,5.16037]
[1742360740687,0.0644983,1938.1,1937.9,0.17196874]
[1742360741209,0.0644983,1938.1,1938.0,0.17174185]
[1742360741610,0.0644983,1938.1,1937.7,5.74505]
[1742360741808,5.2242883,1938.1,1938.0,0.17179237]
[1742360742014,5.16018,1938.0,1937.5,5.74533]
[1742360742188,6.01952999,1937.9,1937.5,5.74533]
[1742360742380,6.01952999,1937.9,1937.5,5.16103]
[1742360743110,0.85920999,1937.9,1937.6,5.16081]
[1742360743700,0.06450988,1938.0,1937.7,5.16073]
[1742360744016,11.97978231,1938.1,1937.7,10.32132]
[1742360744214,11.97978231,1938.1,1937.7,5.16059]
[1742360744378,0.06450958,1938.0,1937.7,5.16059]
[1742360745797,5.22445958,1938.0,1937.7,5.16059]
[1742360746118,6.94488377,1938.0,1937.7,5.16059]
[1742360747718,6.94488377,1938.0,1937.8,0.17239774]
[1742360748096,1.78493377,1938.0,1937.8,0.17239774]
[1742360748414,2.11236495,1938.0,1937.8,0.17239774]
[1742360748717,2.1768744,1938.0,1937.8,0.17239774]
[1742360749015,2.1768744,1938.0,1937.8,0.1490007]
[1742360750246,2.11236495,1938.0,1937.8,5.3094807]
[1742360750394,0.39194076,1938.0,1937.8,5.3094807]
[1742360750592,10.79939,1938.1,1937.8,5.3094807]
[1742360752028,5.6397,1938.1,1937.8,5.3094807]
[1742360752392,10.79894,1938.3,1937.9,5.15996]
[1742360752600,1.079894,1938.2,1938.0,5.15994]
[1742360752894,6.08853544,1938.3,1938.0,5.33104832]
[1742360753425,11.24769544,1938.3,1938.0,0.17110832]
[1742360753634,11.18319478,1938.3,1938.0,0.17110832]
[1742360753793,0.0645,1938.2,1938.0,0.17110832]
[1742360755205,11.18319478,1938.3,1938.0,0.17110832]
[1742360755410,1.11831948,1938.2,1938.0,0.17110832]
[1742360756334,5.6397,1938.3,1938.0,5.91535832]
[1742360756496,10.00389,1938.4,1938.0,5.91516832]
[1742360757239,10.00389,1938.4,1938.1,5.15966]
[1742360757439,0.06449571,1938.3,1938.0,5.91516832]
[1742360757627,0.06449571,1938.3,1938.2,0.17054967]
[1742360757796,1.07133428,1938.3,1938.1,0.17077651]
[1742360757997,1.07133428,1938.3,1938.2,0.17054967]
[1742360758201,1.07133428,1938.3,1938.0,5.74406]
[1742360758392,0.06449571,1938.3,1938.2,0.17054967]
[1742360758600,0.06449571,1938.3,1938.0,5.74406]
[1742360758808,0.06449571,1938.3,1938.2,0.17054967]
[1742360759094,0.06449571,1938.3,1938.1,0.17077651]
[1742360759398,0.06449571,1938.3,1938.0,5.74406]
[1742360759399,0.06449571,1938.3,1938.2,0.17054967]
[1742360759609,1.07133428,1938.3,1938.0,5.74406]
[1742360759898,1.07133428,1938.3,1938.2,0.17054967]
[1742360759899,0.06449571,1938.3,1938.2,0.17054967]
[1742360760124,0.06449571,1938.3,1938.1,0.17077651]
[1742360760304,5.22365571,1938.3,1938.2,0.17054967]
[1742360760511,6.04755571,1938.3,1938.2,0.17054967]
[1742360760707,5.15942,1938.2,1937.9,5.16005]
[1742360760892,5.98322,1938.3,1937.8,0.5843]
[1742360761097,5.1595,1938.2,1937.8,5.16043]
[1742360761298,0.06449994,1938.1,1937.8,10.32072]
[1742360761506,0.06449994,1938.1,1937.9,5.16019]
[1742360761829,0.06449989,1938.1,1937.9,5.16019]
[1742360762030,0.06449989,1938.1,1937.8,5.16043]
[1742360762232,0.06449989,1938.1,1937.8,10.32074]
[1742360762734,5.22393858,1938.2,1937.9,0.17123026]
[1742360763228,5.22393858,1938.2,1938.0,0.17100337]
[1742360763412,5.22393858,1938.2,1937.8,10.32062]
[1742360763597,5.22393858,1938.2,1938.1,0.17077651]
[1742360763793,6.35456717,1938.2,1937.8,5.16031]
[1742360763993,6.35456717,1938.2,1937.5,5.74538]
[1742360763994,5.16031,1937.8,1937.5,5.74538]
[1742360764231,0.88841217,1937.9,1937.6,5.16095]
[1742360765746,0.8239,1937.9,1937.6,5.16095]
[1742360766299,0.88841216,1937.9,1937.6,5.16095]
[1742360766821,6.04868216,1937.9,1937.5,5.16121]
[1742360767236,5.16049,1937.8,1937.5,5.16121]
[1742360767609,5.98478,1937.7,1937.3,5.16165]
[1742360768009,0.06452049,1937.6,1937.3,5.16165]
[1742360768603,5.98478,1937.7,1937.3,5.16165]
[1742360768804,0.88842047,1937.7,1937.4,5.16149]
[1742360769106,6.04918047,1937.7,1937.3,5.16162]
[1742360769603,6.04918047,1937.7,1937.2,5.74637]
[1742360769604,5.16114,1937.6,1937.2,5.16207]
[1742360769804,0.06452212,1937.5,1937.2,5.16207]
[1742360770041,10.00634,1937.5,1937.1,5.16215]
[1742360770331,4.845,1937.5,1937.2,5.16196]
[1742360770903,4.845,1937.5,1937.3,5.16181]
[1742360771303,4.845,1937.5,1937.3,10.32348]
[1742360771500,4.845,1937.5,1937.1,0.5843]
[1742360771808,5.23146711,1937.5,1937.3,5.16175]
[1742360773333,5.23146711,1937.5,1937.2,5.16182]
[1742360773542,0.05327,1937.4,1937.2,5.16182]
[1742360774422,0.05327,1937.4,1937.1,5.16234]
[1742360774622,5.21483,1937.4,1937.0,5.16256]
[1742360774936,0.05327,1937.4,1937.1,5.16235]
[1742360775636,0.778,1937.3,1937.0,5.16249]
[1742360776038,0.778,1937.3,1937.0,10.325]
[1742360777641,0.778,1937.3,1937.1,0.17319782]
[1742360779243,6.00438033,1937.3,1937.1,0.17319782]
[1742360779547,2.0584606,1937.3,1937.0,5.1626]
[1742360779716,0.778,1937.3,1937.0,5.1626]
[1742360779917,6.80022571,1937.4,1937.1,0.17319782]
[1742360780217,6.80022571,1937.4,1937.1,5.33554782]
[1742360780218,1.63855571,1937.4,1937.1,5.33554782]
[1742360780423,11.14389711,1937.5,1937.1,10.49771782]
[1742360780644,1.13746711,1937.5,1937.2,5.16207]
[1742360780844,5.597,1937.7,1937.4,5.16155]
[1742360781139,4.846,1937.8,1937.5,5.16108]
[1742360781346,0.38832853,1937.8,1937.6,5.16099]
[1742360781543,10.00603,1938.0,1937.6,5.16088]
[1742360781743,0.06451124,1937.9,1937.7,0.17205341]
[1742360782111,0.06451124,1937.9,1937.6,5.16088]
[1742360782313,0.06451124,1937.9,1937.8,0.17179925]
[1742360782715,0.06451124,1937.9,1937.6,5.16088]
[1742360782924,0.06451124,1937.9,1937.8,0.17179925]
[1742360783149,1.74674976,1937.9,1937.7,0.17202619]
[1742360783447,1.74674976,1937.9,1937.8,0.17179925]
[1742360783625,1.74674976,1937.9,1937.6,5.16088]
[1742360784148,0.751,1937.8,1937.7,0.17202619]
[1742360784551,0.81551124,1937.8,1937.5,5.16123]
[1742360784720,0.81551124,1937.8,1937.7,0.17202619]
[1742360785250,0.81551124,1937.8,1937.5,5.16123]
[1742360785544,0.81551124,1937.8,1937.7,0.17202619]
[1742360785744,7.29633278,1937.8,1937.6,0.17225315]
[1742360785950,7.29633278,1937.8,1937.7,0.17202619]
[1742360786248,7.29624278,1937.8,1937.4,5.74575]
[1742360786450,5.97602124,1937.8,1937.7,0.17202619]
[1742360786618,0.81551124,1937.8,1937.5,10.32237]
[1742360786818,0.81551124,1937.8,1937.6,0.17225315]
[1742360787218,0.06451124,1937.8,1937.6,5.33324315]
[1742360787419,0.44827685,1937.9,1937.6,5.33324315]
[1742360787620,0.06451117,1937.9,1937.6,10.49409315]
[1742360787833,10.76992,1938.0,1937.6,10.49409315]
[1742360788252,10.76992,1938.0,1937.6,5.33310315]
[1742360788453,18.31107263,1938.0,1937.6,5.33310315]
[1742360788654,13.15087263,1938.0,1937.6,5.33310315]
[1742360789561,13.15087263,1938.0,1937.6,5.33307315]
[1742360790056,5.99271929,1938.0,1937.7,5.16072]
[1742360790262,5.99271929,1938.0,1937.7,5.33269176]
[1742360791161,6.05722834,1938.0,1937.7,5.33269176]
[1742360793062,5.16024,1937.9,1937.7,0.17197176]
[1742360793358,5.22504907,1937.8,1937.4,10.90704]
[1742360793565,11.14967907,1937.8,1937.4,5.16134]
[1742360793861,5.92444,1937.8,1937.4,5.16134]
[1742360794062,11.08514,1937.8,1937.4,5.16134]
[1742360794262,5.92444,1937.8,1937.4,5.16134]
[1742360794564,6.68065838,1937.8,1937.4,5.16134]
[1742360797437,6.68061838,1937.8,1937.5,5.1612]
[1742360798736,1.52011838,1937.8,1937.5,5.1612]
[1742360798941,6.68065838,1937.8,1937.4,10.32272]
[1742360799860,6.68065838,1937.8,1937.5,5.16125]
[1742360800063,1.52011838,1937.8,1937.5,5.16125]
[1742360801775,6.74513517,1937.8,1937.4,5.16134]
[1742360802546,5.16086,1937.7,1937.3,5.16181]
[1742360802750,5.16086,1937.7,1937.2,5.16201]
[1742360802751,0.8241,1937.5,1937.2,5.16201]
[1742360802959,6.05005334,1937.5,1937.0,10.90926]
[1742360803254,5.98553,1937.5,1937.0,5.16236]
[1742360803434,0.8241,1937.3,1937.0,5.16236]
[1742360804651,0.88863186,1937.3,1937.0,5.16236]
[1742360805044,0.8241,1937.3,1937.0,5.16236]
[1742360805694,6.05054184,1937.3,1936.9,10.32564]
[1742360806842,0.8241,1937.3,1937.0,5.16258]
[1742360807491,0.8241,1937.3,1937.1,0.17324832]
[1742360808175,1.21180018,1937.3,1937.1,0.17324832]
[1742360809396,5.16208,1937.2,1937.1,0.17324832]
[1742360809909,5.22661493,1937.2,1937.1,0.16747159]
[1742360810372,5.22661493,1937.2,1936.8,5.16305]
[1742360810548,0.06453493,1937.2,1937.1,0.16747159]
[1742360810748,0.06453493,1937.2,1936.9,5.16286]
[1742360810948,0.06453493,1937.2,1937.1,0.16747159]
[1742360811158,0.06453493,1937.2,1936.9,5.16286]
[1742360811350,0.06453493,1937.2,1937.1,0.16747159]
[1742360811560,5.22662493,1937.2,1937.0,0.16769869]
[1742360811880,5.22662493,1937.2,1937.1,0.16747159]
[1742360812047,5.22662493,1937.2,1936.9,5.16288]
[1742360812246,5.22662493,1937.2,1937.0,0.16805255]
[1742360812467,0.06453493,1937.2,1937.0,0.16805255]
[1742360813374,1.21180018,1937.3,1937.0,5.33055255]
[1742360814481,0.38770018,1937.3,1937.2,5.16208]
[1742360814680,10.82619,1937.5,1937.2,5.16208]
[1742360814987,10.82619,1937.5,1937.2,5.32965893]
[1742360815351,11.908809,1937.5,1937.2,0.16757893]
[1742360815577,5.22609758,1937.4,1937.2,0.16757893]
[1742360815969,11.908809,1937.5,1937.1,5.16234]
[1742360816164,12.30324964,1937.5,1937.3,0.16735187]
[1742360816367,10.14195964,1937.5,1937.2,5.32954893]
[1742360816667,9.05934064,1937.5,1937.3,0.16735187]
[1742360817851,14.22065064,1937.5,1937.3,0.16735187]
[1742360818385,0.06452666,1937.4,1937.3,0.16735187]
[1742360818596,19.38215064,1937.5,1937.3,0.16735187]
[1742360818795,19.38219064,1937.5,1937.3,0.16735187]
[1742360819095,2.0027465,1937.4,1937.1,5.16228]
[1742360819263,14.22065064,1937.5,1937.1,5.16228]
[1742360819586,19.38209064,1937.5,1937.1,5.16228]
[1742360819774,0.06452755,1937.4,1937.1,5.16228]
[1742360819974,14.22065064,1937.5,1937.1,5.16228]
[1742360820177,14.22065064,1937.5,1937.1,10.32447]
[1742360820379,9.05934064,1937.5,1937.2,5.16208]
[1742360820585,6.05934064,1937.5,1937.2,5.16208]
[1742360821190,0.39444064,1937.5,1937.3,5.16163]
[1742360821374,4.845,1937.6,1937.3,5.16163]
[1742360821559,6.5756352,1937.6,1937.3,5.16163]
[1742360822152,0.8199,1937.5,1937.2,5.16207]
[1742360822585,0.06452311,1937.4,1937.3,0.16732076]
[1742360824305,5.22607311,1937.4,1937.0,5.16258]
[1742360824494,6.38619251,1937.4,1937.3,0.16732076]
[1742360824696,6.38619251,1937.4,1937.0,5.16258]
[1742360824880,6.38619251,1937.4,1937.3,0.16724688]
[1742360825079,6.38619251,1937.4,1937.0,5.16258]
[1742360825400,6.38619251,1937.4,1937.3,0.16724688]
[1742360825805,6.38619251,1937.4,1937.0,5.16258]
[1742360825985,6.38619251,1937.4,1937.3,0.16724688]
[1742360826185,6.38619251,1937.4,1937.0,5.16258]
[1742360826389,6.38619251,1937.4,1937.3,0.16724688]
[1742360826877,6.38619251,1937.4,1937.0,10.32505]
[1742360827077,6.38619251,1937.4,1937.3,0.16724688]
[1742360827404,6.38619251,1937.4,1937.0,10.32505]
[1742360827605,6.38619251,1937.4,1937.3,0.16724688]
[1742360827810,6.38619251,1937.4,1937.0,5.16247]
[1742360828008,6.38619251,1937.4,1937.3,0.16724688]
[1742360828201,6.38619251,1937.4,1937.0,5.16247]
[1742360828380,6.38619251,1937.4,1937.3,0.16724688]
[1742360828581,6.38619251,1937.4,1937.0,5.16247]
[1742360829097,6.38619251,1937.4,1937.1,0.16770101]
[1742360829304,0.758,1937.2,1937.1,0.16770101]
[1742360829508,0.82253386,1937.2,1936.9,5.16285]
[1742360829709,0.82253386,1937.2,1937.1,0.16770101]
[1742360829875,0.82253386,1937.2,1936.9,5.16285]
[1742360830101,0.82253368,1937.2,1937.1,0.16770101]
[1742360830301,0.82253368,1937.2,1936.9,5.16285]
[1742360830501,5.98472368,1937.2,1937.1,0.16770101]
[1742360830701,7.13153197,1937.2,1936.8,10.91041]
[1742360830899,7.13153197,1937.2,1937.1,0.16770101]
[1742360831136,7.13153197,1937.2,1936.8,5.16298]
[1742360831336,7.13153197,1937.2,1937.1,0.16770101]
[1742360831540,7.13153197,1937.2,1936.8,10.32595]
[1742360831715,7.13153197,1937.2,1937.1,0.16770101]
[1742360831917,1.90480829,1937.2,1936.9,5.16285]
[1742360832117,0.758,1937.2,1937.1,0.16770101]
[1742360832322,0.758,1937.2,1936.9,5.16285]
[1742360832527,10.64550925,1937.3,1937.1,0.16770101]
[1742360832727,10.64550925,1937.3,1936.9,5.16285]
[1742360832928,10.64550925,1937.3,1937.2,0.16747394]
[1742360833129,10.64550925,1937.3,1936.9,5.16285]
[1742360833435,4.845,1937.3,1937.2,0.16747394]
[1742360833643,4.845,1937.3,1937.1,5.16225]
[1742360833809,4.845,1937.3,1937.2,0.16747394]
[1742360835014,4.845,1937.4,1937.2,0.16747394]
[1742360835817,4.9095268,1937.4,1937.2,0.16747394]
[1742360837016,0.0645268,1937.4,1937.2,0.16747394]
[1742360837221,4.9095268,1937.4,1937.2,0.16747394]
[1742360838146,10.0711168,1937.4,1937.2,0.16747394]
[1742360838441,11.05305177,1937.4,1937.0,5.1625]
[1742360838657,11.81105177,1937.4,1937.3,0.16724688]
[1742360838861,11.81105177,1937.4,1937.0,5.1625]
[1742360839029,11.81105177,1937.4,1937.3,0.16724688]
[1742360839360,11.81105177,1937.4,1937.0,5.1625]
[1742360839361,5.16187,1937.3,1937.0,5.1625]
[1742360839514,5.22665144,1937.2,1936.8,5.16301]
[1742360840714,5.98465144,1937.2,1936.8,5.16301]
[1742360842641,5.98465144,1937.2,1936.8,10.32606]
[1742360842853,11.81102177,1937.4,1937.0,5.16261]
[1742360843054,11.81102177,1937.4,1937.0,5.74691]
[1742360843215,1.18110218,1937.3,1937.0,5.74691]
[1742360843416,0.758,1937.4,1937.1,5.1623]
[1742360843616,5.55509085,1937.5,1937.1,10.32455]
[1742360843848,10.40009085,1937.5,1937.1,5.16225]
[1742360844146,0.06453016,1937.4,1937.1,5.16225]
[1742360846459,1.33211902,1937.3,1937.0,10.32497]
[1742360846656,5.22619016,1937.4,1937.0,10.32497]
[1742360846963,11.20964085,1937.5,1937.1,5.74663]
[1742360847650,6.04829085,1937.5,1937.2,5.16206]
[1742360847843,5.23879085,1937.5,1937.2,5.16206]
[1742360848154,5.23879085,1937.5,1937.2,5.16189]
[1742360848349,6.27877394,1937.5,1937.2,5.16189]
[1742360848555,6.34330003,1937.5,1937.2,5.16189]
[1742360849772,6.34230003,1937.5,1937.2,5.16189]
[1742360850329,5.23779085,1937.5,1937.3,5.16179]
[1742360850546,0.39379085,1937.5,1937.4,5.16155]
[1742360850839,4.844,1937.6,1937.3,5.16179]
[1742360852631,4.844,1937.6,1937.4,0.16712485]
[1742360853039,4.844,1937.6,1937.4,5.16146]
[1742360853235,4.844,1937.6,1937.5,0.16689785]
[1742360853435,3.0,1937.9,1937.5,0.16689785]
[1742360853436,8.96973,1937.9,1937.5,0.16689785]
[1742360853657,5.80515777,1937.9,1937.6,5.16102]
[1742360853858,1.02566887,1937.9,1937.6,5.16102]
[1742360854052,0.96115777,1937.9,1937.7,5.32699335]
[1742360854241,7.844,1938.0,1937.7,10.48757335]
[1742360854428,7.844,1938.0,1937.7,10.48749335]
[1742360854629,0.06450775,1937.9,1937.7,5.32683335]
[1742360855962,0.06450775,1937.9,1937.7,10.48743335]
[1742360856539,0.06450775,1937.9,1937.7,10.48748335]
[1742360856742,0.06450775,1937.9,1937.7,5.32683335]
[1742360857454,0.44607151,1937.9,1937.7,5.32683335]
[1742360858841,0.8095,1938.3,1937.9,0.5843]
[1742360859043,4.843,1938.4,1938.1,5.15957]
[1742360859361,4.843,1938.4,1938.2,5.32434228]
[1742360860110,1.08662274,1938.5,1938.2,5.32434228]
[1742360860111,0.26302274,1938.5,1938.3,5.15906]
[1742360860443,4.843,1938.6,1938.3,0.16477546]
[1742360860765,0.8236,1938.7,1938.3,0.16477546]
[1742360860766,0.38975149,1938.7,1938.5,5.15847]
[1742360860937,4.843,1938.8,1938.5,5.15847]
[1742360861135,10.2571424,1938.8,1938.6,0.16395135]
[1742360861439,4.843,1938.8,1938.6,0.16395135]
[1742360864071,5.23635853,1938.8,1938.6,0.16395135]
[1742360866670,0.39335853,1938.8,1938.7,5.15809]
[1742360866872,0.26401745,1938.9,1938.7,5.15809]
[1742360867179,0.01,1938.9,1938.7,5.15809]
[1742360867349,0.01,1938.9,1938.8,0.16296558]
[1742360867681,0.01,1938.9,1938.7,5.15809]
[1742360868083,0.27001603,1938.9,1938.7,5.15809]
[1742360868250,0.65972768,1938.9,1938.7,5.15809]
[1742360870099,0.65972768,1938.9,1938.6,5.15818]
[1742360870277,0.65972768,1938.9,1938.5,5.74288]
[1742360870482,5.81740768,1938.9,1938.7,0.16319228]
[1742360870679,0.65972768,1938.9,1938.6,5.15836]
[1742360870993,5.81733768,1938.9,1938.8,0.16296558]
[1742360871294,5.81733768,1938.9,1938.7,0.16319228]
[1742360871476,0.65972768,1938.9,1938.8,0.16296558]
[1742360871650,0.65972768,1938.9,1938.6,5.15834]
[1742360872168,0.65972768,1938.9,1938.7,0.16319228]
[1742360872357,0.65972768,1938.9,1938.6,5.15834]
[1742360872578,0.65972768,1938.9,1938.8,0.16296558]
[1742360872761,0.65972768,1938.9,1938.7,0.16319228]
[1742360872953,0.39971165,1938.9,1938.6,5.1582]
[1742360873164,0.01,1938.9,1938.8,5.32078558]